bitfinex/quotes_ETHUSD_20241212
["timestamp","ask_amount","ask_price","bid_price","bid_amount"]
[1734000339315,0.8197,3917.6,3916.9,4.33020364]
[1734000339674,0.8197,3917.6,3917.0,0.50361455]
[1734000339918,0.83264457,3917.9,3917.0,0.50361455]
[1734000340126,3.30532,3917.9,3917.0,1.39950883]
[1734000340431,0.07974465,3917.8,3917.0,1.39950883]
[1734000341008,2.55246,3917.8,3917.0,1.39950883]
[1734000341815,0.7529,3917.9,3917.0,1.39950883]
[1734000341816,2.55255,3917.7,3917.0,1.39950883]
[1734000341996,2.55255,3917.7,3916.9,1.33020364]
[1734000342517,0.7529,3917.9,3916.9,3.88318364]
[1734000342675,0.0797444,3917.8,3917.0,0.7706]
[1734000343031,0.0797444,3917.7,3917.0,0.7706]
[1734000343189,0.7529,3917.9,3917.0,0.7706]
[1734000343392,0.07974438,3917.8,3917.1,0.81540452]
[1734000343604,0.07974438,3917.7,3917.1,0.81540452]
[1734000343824,0.07974438,3917.6,3917.1,0.81540452]
[1734000344121,0.07974455,3917.5,3917.1,0.81540452]
[1734000344435,0.07974462,3917.5,3917.1,0.81540452]
[1734000344586,0.07974462,3917.4,3917.1,0.81540452]
[1734000344787,3.30529,3917.9,3917.1,0.81540452]
[1734000345094,0.20734218,3917.8,3917.0,0.7706]
[1734000345280,0.20734218,3917.7,3917.0,0.7706]
[1734000345482,0.20734218,3917.6,3917.0,0.7706]
[1734000345786,0.07974699,3917.5,3917.0,0.7706]
[1734000346114,0.07974719,3917.4,3917.0,0.7706]
[1734000346314,0.07974719,3917.3,3917.0,0.7706]
[1734000346516,0.07974719,3917.2,3917.0,0.7706]
[1734000346717,0.12759455,3917.6,3917.0,1.58602152]
[1734000346926,0.07974475,3917.5,3917.0,1.58602152]
[1734000347086,0.07974475,3917.4,3917.0,1.58602152]
[1734000347287,0.07974475,3917.3,3917.0,0.7706]
[1734000347494,0.12759118,3917.8,3917.0,0.7706]
[1734000347694,0.20733575,3917.7,3917.0,0.7706]
[1734000347891,0.12759123,3917.6,3917.0,0.7706]
[1734000348119,0.07974452,3917.5,3917.0,0.7706]
[1734000348412,0.07974444,3917.4,3917.1,0.81540852]
[1734000348609,0.07974444,3917.3,3917.1,0.81540852]
[1734000348916,0.7529,3917.9,3917.1,0.81540852]
[1734000349121,0.2073356,3917.8,3917.0,3.32354]
[1734000349417,0.2073356,3917.7,3917.0,3.32354]
[1734000349621,0.2073356,3917.6,3917.0,3.32354]
[1734000349841,0.2073356,3917.5,3917.0,3.32354]
[1734000350054,0.07974446,3917.4,3917.0,3.32354]
[1734000350354,0.07974446,3917.3,3917.0,4.13894052]
[1734000350531,0.07452066,3918.1,3917.3,0.768]
[1734000350694,0.7964,3918.9,3917.8,0.768]
[1734000350695,0.07973535,3918.0,3917.8,0.768]
[1734000350898,0.07972877,3917.9,3917.8,3.53027036]
[1734000351106,0.12756034,3918.7,3917.8,3.53027036]
[1734000351338,0.20728534,3918.6,3917.8,3.53027036]
[1734000351623,0.12756034,3918.5,3917.8,3.53027036]
[1734000351904,0.20728534,3918.4,3917.8,3.53027036]
[1734000352103,0.20728534,3918.3,3917.8,3.53027036]
[1734000352299,0.20728534,3918.2,3917.9,0.4860474]
[1734000352526,3.34814,3918.9,3917.9,0.4860474]
[1734000352712,0.07972888,3918.1,3918.0,4.65052364]
[1734000353100,0.12756375,3918.8,3918.0,1.33020364]
[1734000353302,0.20728277,3918.7,3918.1,0.768]
[1734000353502,0.07971902,3918.6,3918.2,0.2584251]
[1734000353746,0.07971902,3918.5,3918.2,0.2584251]
[1734000353907,0.12755057,3919.1,3918.2,0.2584251]
[1734000354104,0.12755057,3919.1,3918.1,0.768]
[1734000354105,0.20727326,3919.0,3918.1,0.768]
[1734000354411,0.20727326,3918.9,3918.1,0.768]
[1734000354740,2.5516,3919.1,3918.1,0.768]
[1734000354741,0.20727326,3918.8,3918.1,0.768]
[1734000354949,0.8271,3918.6,3917.9,0.7656]
[1734000355104,0.20727918,3918.5,3917.9,0.7656]
[1734000355308,0.20728408,3918.4,3917.9,0.7656]
[1734000355509,0.20728893,3918.3,3917.9,1.28009914]
[1734000355720,0.07972048,3918.2,3917.9,1.28009914]
[1734000356039,0.07972048,3918.1,3917.9,1.79637242]
[1734000356241,0.8271,3918.6,3917.9,1.79637242]
[1734000356415,0.20728936,3918.5,3917.9,3.12657606]
[1734000356617,0.07972668,3918.4,3918.0,2.55232]
[1734000356805,0.7646,3918.9,3918.0,2.55232]
[1734000357005,0.07972566,3918.3,3918.0,3.12020961]
[1734000357234,0.12756106,3918.7,3918.1,2.55224]
[1734000357439,0.2072865,3918.6,3918.1,2.55224]
[1734000357776,0.07972544,3918.5,3918.1,2.55224]
[1734000357972,0.12756073,3918.8,3918.1,3.12528324]
[1734000358274,0.2072862,3918.7,3918.3,0.7809]
[1734000358472,0.07972547,3918.6,3918.3,0.7809]
[1734000358770,0.7881,3919.2,3918.3,0.7809]
[1734000358771,0.07972234,3918.5,3918.3,0.7809]
[1734000358933,0.7881,3919.2,3918.3,0.7809]
[1734000359138,0.20727647,3919.1,3918.3,0.7809]
[1734000359361,0.20727647,3919.0,3918.3,0.7809]
[1734000359675,0.07972168,3918.9,3918.5,1.33020364]
[1734000359889,0.07972168,3918.8,3918.5,1.33020364]
[1734000360072,0.07972168,3918.7,3918.5,1.33020364]
[1734000360387,0.7881,3919.2,3918.0,0.8089]
[1734000360388,0.07971824,3918.6,3918.0,0.8089]
[1734000360540,3.31604,3918.6,3917.7,4.33020364]
[1734000360874,3.31604,3918.6,3917.7,1.33020364]
[1734000361060,0.0797203,3918.5,3917.7,1.33020364]
[1734000361262,0.12755248,3918.4,3917.6,0.8089]
[1734000361451,0.12755248,3918.3,3917.6,0.8089]
[1734000361660,0.0797203,3918.2,3917.3,3.781]
[1734000361835,0.0797203,3918.1,3917.4,1.20862922]
[1734000362039,0.12757449,3918.4,3917.5,1.81441976]
[1734000362282,0.0797315,3918.3,3917.6,2.55252]
[1734000362484,0.7641,3918.6,3917.7,0.7791]
[1734000362986,0.20729844,3918.5,3917.7,0.7791]
[1734000363285,2.67964827,3918.4,3917.4,1.28917815]
[1734000363502,0.20729844,3918.3,3917.4,1.28917815]
[1734000363697,0.07973017,3918.3,3917.4,1.28917815]
[1734000363977,0.7645,3918.1,3917.4,0.7786]
[1734000364295,0.07973017,3918.0,3917.2,4.06827623]
[1734000364492,3.31675,3918.1,3917.3,1.20890704]
[1734000364676,2.96377897,3918.0,3917.1,2.34477482]
[1734000364844,0.07973397,3917.9,3917.1,4.27649859]
[1734000365186,0.07973397,3917.8,3917.1,4.27649859]
[1734000365392,0.07973397,3917.7,3917.1,4.27649859]
[1734000365603,2.55251,3917.7,3916.9,1.06827623]
[1734000365742,0.07974282,3917.6,3917.0,1.20916002]
[1734000365942,0.07974282,3917.5,3916.8,3.774]
[1734000366250,0.7645,3918.1,3916.9,4.20919587]
[1734000366251,0.07974282,3917.4,3916.9,4.20919587]
[1734000366462,0.7645,3918.1,3916.9,0.51574248]
[1734000366463,0.12759376,3917.8,3916.9,0.51574248]
[1734000366673,0.07974584,3917.7,3916.9,3.06875248]
[1734000366906,0.07974584,3917.6,3916.9,3.06875248]
[1734000367056,0.07974584,3917.5,3916.9,3.06875248]
[1734000367243,0.12759288,3917.8,3917.0,2.11853791]
[1734000367445,0.07974502,3917.7,3917.0,0.90936144]
[1734000367682,0.07974502,3917.6,3917.0,0.90936144]
[1734000367890,0.07974502,3917.5,3917.0,0.90936144]
[1734000368053,0.7645,3918.1,3917.0,3.73508118]
[1734000368373,0.20732549,3918.0,3917.2,0.7998]
[1734000368573,0.07974297,3917.9,3917.2,0.7998]
[1734000368748,0.7645,3918.1,3917.2,2.00889148]
[1734000369093,0.07973672,3918.0,3917.4,2.5527]
[1734000369294,0.07973672,3917.9,3917.5,0.56298677]
[1734000369447,0.8262,3918.4,3917.5,0.56298677]
[1734000369650,0.07973188,3918.3,3917.7,2.5525]
[1734000369867,0.07973188,3918.2,3917.7,2.5525]
[1734000370075,0.8262,3918.4,3917.7,2.5525]
[1734000370244,0.07972971,3918.3,3917.7,2.5525]
[1734000370460,0.07972971,3918.2,3917.7,3.2741696]
[1734000370681,0.8262,3918.4,3917.7,3.2741696]
[1734000370881,0.07973038,3918.3,3917.7,3.2741696]
[1734000371045,0.07973038,3918.2,3917.7,0.7216696]
[1734000371250,0.07973038,3918.1,3917.7,0.7216696]
[1734000371446,0.07973038,3918.0,3917.7,0.7216696]
[1734000371646,0.8262,3918.4,3917.7,0.7216696]
[1734000371862,0.20730149,3918.3,3917.6,0.7702]
[1734000372087,0.07973134,3918.2,3917.6,0.7702]
[1734000372323,0.07973134,3918.1,3917.6,3.32277]
[1734000372485,0.8262,3918.4,3917.7,1.20889335]
[1734000372652,0.07972725,3918.3,3917.8,2.55244]
[1734000372851,0.07972725,3918.2,3917.9,2.55235]
[1734000373091,0.7867,3918.8,3917.9,2.55235]
[1734000373581,0.25512401,3918.7,3917.9,2.55235]
[1734000373804,0.12756136,3918.6,3917.9,2.55235]
[1734000374008,0.12756292,3918.5,3917.9,2.55235]
[1734000374296,0.07972585,3918.4,3917.9,2.55235]
[1734000374462,0.07972585,3918.3,3917.9,2.55235]
[1734000374663,0.07972585,3918.2,3917.9,2.55235]
[1734000374896,0.7867,3918.8,3918.0,0.39532357]
[1734000375187,0.20728903,3918.7,3917.9,2.55235]
[1734000375353,0.20728903,3918.6,3917.7,6.95339567]
[1734000375556,0.8123,3918.4,3917.7,0.51357674]
[1734000375793,0.20728903,3918.3,3917.3,7.40773623]
[1734000376111,0.8123,3918.4,3917.3,7.40773623]
[1734000376112,0.20728903,3918.2,3917.4,1.20875867]
[1734000376397,0.07972655,3918.1,3917.3,6.33946]
[1734000376601,0.8123,3918.4,3917.4,3.76148706]
[1734000376602,0.07972655,3918.0,3917.4,3.76148706]
[1734000376899,0.07972655,3917.9,3917.4,3.05980643]
[1734000377104,0.12757596,3918.2,3917.6,2.55257]
[1734000377330,0.07973468,3918.1,3917.7,2.5525]
[1734000377464,0.07973468,3918.0,3917.7,2.5525]
[1734000377659,0.8123,3918.4,3917.7,2.85845964]
[1734000377864,0.20729954,3918.3,3917.7,2.85845964]
[1734000378060,0.07973059,3918.2,3917.7,2.85845964]
[1734000378264,0.07973059,3918.1,3917.7,2.85845964]
[1734000378465,0.12756867,3918.3,3917.7,2.85845964]
[1734000378730,0.07973042,3918.2,3917.7,2.85845964]
[1734000379031,0.07973042,3918.1,3917.7,2.85845964]
[1734000379321,0.07973042,3918.0,3917.7,2.85845964]
[1734000379463,0.8123,3918.4,3917.7,2.85845964]
[1734000379668,0.20730089,3918.3,3917.7,2.5525]
[1734000379882,0.8123,3918.4,3917.7,2.5525]
[1734000379883,0.07973111,3918.2,3917.7,2.5525]
[1734000380097,0.07973111,3918.1,3917.7,2.5525]
[1734000380436,0.8123,3918.4,3917.7,2.5525]
[1734000380730,0.07973129,3918.0,3917.7,2.5525]
[1734000381228,0.07973129,3918.0,3917.7,2.96528727]
[1734000381723,0.07973129,3918.0,3917.8,2.55245]
[1734000384006,0.07973129,3918.0,3917.7,2.96528727]
[1734000384341,0.07973129,3918.0,3917.6,1.32967267]
[1734000384642,0.07973129,3918.0,3917.7,2.5525]
[1734000384818,0.07973129,3918.0,3917.6,1.32967267]
[1734000384982,0.07973129,3918.0,3917.8,2.55243]
[1734000385941,0.12756794,3918.3,3917.6,1.32967267]
[1734000386080,0.7738,3918.1,3917.4,1.57537266]
[1734000386283,0.20730946,3918.0,3917.4,0.50709643]
[1734000386638,0.7738,3918.1,3917.4,0.50709643]
[1734000386639,0.07972996,3917.9,3917.4,0.50709643]
[1734000386831,0.07972996,3917.8,3917.4,0.50709643]
[1734000386989,0.07972996,3917.7,3917.4,0.50709643]
[1734000387330,0.12757968,3918.0,3917.4,0.50709643]
[1734000387546,0.2073184,3917.9,3917.4,0.50709643]
[1734000387746,0.07973872,3917.8,3917.4,3.05978643]
[1734000387917,0.07973872,3917.7,3917.4,0.50709643]
[1734000388116,0.7738,3918.1,3917.4,0.50709643]
[1734000388117,0.07973896,3917.6,3917.4,0.50709643]
[1734000388329,0.07974002,3917.5,3917.4,0.50709643]
[1734000390052,0.7738,3918.1,3917.4,0.50709643]
[1734000390248,0.07974031,3917.5,3917.4,0.50709643]
[1734000390549,0.07974015,3917.5,3917.4,0.50709643]
[1734000390842,0.07973989,3917.5,3917.4,0.50709643]
[1734000391933,0.07974,3917.5,3917.4,0.50709643]
[1734000394052,0.12758267,3917.9,3917.4,0.50709643]
[1734000394249,0.07973899,3917.8,3917.4,0.50709643]
[1734000394449,0.07973899,3917.7,3917.4,0.50709643]
[1734000394655,0.07973899,3917.6,3917.4,0.50709643]
[1734000394851,0.12758237,3918.0,3917.4,0.50709643]
[1734000395072,0.20732237,3917.9,3917.4,0.50709643]
[1734000395271,0.20732237,3917.8,3917.4,0.50709643]
[1734000395434,0.2073267,3917.7,3917.1,4.9508289]
[1734000395771,3.32606,3918.1,3917.2,1.20647179]
[1734000395772,0.07974297,3917.6,3917.2,1.20647179]
[1734000395940,3.32606,3918.1,3917.1,3.88255267]
[1734000396157,0.51895243,3918.0,3917.2,1.20518254]
[1734000396355,0.07974171,3917.9,3917.2,2.55282]
[1734000396556,0.07974171,3917.8,3917.3,1.20490978]
[1734000396759,0.07974171,3917.7,3917.2,2.55282]
[1734000396969,0.07974171,3917.6,3917.2,2.55282]
[1734000397266,0.7738,3918.1,3917.2,3.3424056]
[1734000397267,0.07974171,3917.5,3917.2,3.3424056]
[1734000397434,0.7738,3918.1,3917.2,3.3424056]
[1734000397641,0.20732547,3918.0,3917.2,2.55282]
[1734000397873,0.20732547,3917.9,3917.2,2.55282]
[1734000398045,0.20732547,3917.8,3917.2,2.55282]
[1734000398246,0.20732547,3917.7,3917.2,2.55282]
[1734000398441,0.07974056,3917.6,3917.2,2.55282]
[1734000398641,0.07974056,3917.5,3917.2,2.55282]
[1734000398837,0.07974056,3917.4,3917.2,2.55282]
[1734000399066,0.12758633,3918.0,3917.2,2.55282]
[1734000399373,0.20732769,3917.9,3917.2,2.55282]
[1734000399574,0.20732769,3917.8,3917.2,2.55282]
[1734000399774,0.20732769,3917.7,3917.2,2.55282]
[1734000399949,0.07974136,3917.6,3917.2,2.55282]
[1734000400154,0.07974136,3917.5,3917.1,1.8480086]
[1734000400357,0.07974136,3917.4,3917.2,1.20417358]
[1734000400539,0.12758777,3918.0,3917.1,5.1905072]
[1734000400857,3.32605,3918.1,3917.2,1.20429245]
[1734000400858,0.20733008,3917.9,3917.2,1.20429245]
[1734000401063,0.20733008,3917.8,3917.2,2.55282]
[1734000401247,0.07974231,3917.7,3917.4,1.32967267]
[1734000401450,0.07974231,3917.6,3917.4,1.32967267]
[1734000401675,0.07974231,3917.5,3917.4,1.32967267]
[1734000402954,0.07974312,3917.5,3917.4,1.32967267]
[1734000403308,0.8101,3917.4,3917.1,1.8480086]
[1734000403524,0.07974312,3917.3,3917.1,1.8480086]
[1734000403720,0.8101,3917.4,3917.1,1.8480086]
[1734000403721,0.07974312,3917.2,3917.1,1.8480086]
[1734000403917,0.0797466,3917.2,3917.1,1.8480086]
[1734000404915,0.8101,3917.4,3917.1,1.8480086]
[1734000405064,0.07974515,3917.3,3917.0,1.32967267]
[1734000405417,0.8101,3917.4,3917.0,1.32967267]
[1734000405708,0.07974557,3917.3,3917.0,1.32967267]
[1734000405913,0.8101,3917.4,3917.0,1.32967267]
[1734000406233,0.07974552,3917.3,3917.0,1.32967267]
[1734000406377,0.8101,3917.4,3917.0,1.32967267]
[1734000406583,0.07974547,3917.3,3917.0,1.32967267]
[1734000406816,0.8101,3917.4,3917.0,1.32967267]
[1734000407169,0.07974549,3917.3,3917.0,1.32967267]
[1734000407490,0.8101,3917.4,3917.0,1.32967267]
[1734000407681,0.07974554,3917.3,3917.0,1.32967267]
[1734000407889,0.8101,3917.4,3917.0,1.32967267]
[1734000408188,0.07974552,3917.3,3917.0,1.32967267]
[1734000408516,0.07974552,3917.2,3917.0,1.32967267]
[1734000408817,0.8101,3917.4,3917.0,1.32967267]
[1734000408970,0.079746,3917.3,3917.0,1.32967267]
[1734000409316,0.07203031,3918.1,3917.0,1.32967267]
[1734000409317,0.079746,3917.2,3917.1,4.98485609]
[1734000409531,2.13327147,3918.5,3917.2,0.821]
[1734000409532,0.12758345,3918.0,3917.2,0.821]
[1734000409725,0.7708,3918.5,3918.0,0.821]
[1734000410035,0.0797329,3918.4,3918.3,2.55212]
[1734000410201,0.12755125,3918.8,3918.3,1.32967267]
[1734000410407,0.07971783,3918.7,3918.5,2.55198]
[1734000410569,0.07971783,3918.6,3918.5,2.55198]
[1734000411270,0.8127,3919.2,3918.5,2.55198]
[1734000411600,0.20726223,3919.1,3918.5,2.55198]
[1734000411800,0.20726223,3919.0,3918.5,2.55198]
[1734000411967,0.07971624,3918.9,3918.5,2.55198]
[1734000412163,0.07971624,3918.8,3918.5,2.55198]
[1734000412369,0.07971624,3918.7,3918.5,2.55198]
[1734000412664,0.12754625,3919.0,3918.5,2.55198]
[1734000412865,0.07971597,3918.9,3918.5,2.55198]
[1734000413072,0.07971597,3918.8,3918.3,1.32967267]
[1734000413399,0.8127,3919.2,3918.3,2.55207]
[1734000413400,0.07971597,3918.7,3918.3,2.55207]
[1734000413599,0.12754622,3919.0,3918.4,0.50884221]
[1734000413810,0.07971614,3918.9,3918.4,3.06085221]
[1734000414029,0.12754646,3919.1,3918.7,0.7625]
[1734000414178,0.12754646,3919.4,3918.8,2.5518]
[1734000414508,2.13327147,3920.2,3919.4,2.55141]
[1734000414509,1.85504717,3920.2,3919.4,2.55141]
[1734000414715,1.09015745,3920.1,3919.4,2.55141]
[1734000414914,0.07970196,3920.0,3919.4,2.55141]
[1734000415087,0.07970196,3919.9,3919.4,2.55141]
[1734000415287,0.789,3920.2,3919.4,2.55141]
[1734000415599,0.07969344,3920.1,3919.4,2.55141]
[1734000415773,0.789,3920.2,3919.4,2.55141]
[1734000415774,0.07969344,3920.0,3919.4,2.55141]
[1734000415978,0.07969344,3919.9,3919.2,3.30862]
[1734000416179,0.789,3920.2,3919.3,2.55147]
[1734000416389,0.42642316,3920.1,3919.3,2.55147]
[1734000416594,0.07969505,3920.0,3919.3,2.55147]
[1734000416923,0.34672811,3920.1,3919.4,2.5514]
[1734000417103,0.07969333,3920.0,3919.2,3.30863]
[1734000417278,0.07969333,3920.1,3919.3,2.55146]
[1734000417632,0.07969406,3920.1,3919.3,2.55146]
[1734000418211,0.789,3920.2,3919.3,2.55146]
[1734000418374,0.86869406,3920.2,3919.3,2.55146]
[1734000418576,0.789,3920.2,3919.3,3.182316]
[1734000418877,0.86869406,3920.2,3919.3,3.182316]
[1734000419083,0.07969406,3920.1,3919.3,3.182316]
[1734000419316,0.789,3920.2,3919.3,3.182316]
[1734000419485,0.86869406,3920.2,3919.3,3.182316]
[1734000419696,0.789,3920.2,3919.3,3.182316]
[1734000419897,0.86869406,3920.2,3919.3,3.69433615]
[1734000420090,0.789,3920.2,3919.3,3.69433615]
[1734000420295,0.86869406,3920.2,3919.3,3.69433615]
[1734000420517,0.789,3920.2,3919.3,3.69433615]
[1734000420822,0.86869406,3920.2,3919.3,1.14287615]
[1734000421247,0.86869406,3920.2,3918.8,3.0]
[1734000421415,0.12751109,3920.7,3918.7,2.5518]
[1734000421416,0.8185,3919.7,3918.7,2.5518]
[1734000421731,0.89819406,3919.7,3918.7,2.5518]
[1734000422041,0.89819406,3919.7,3918.9,0.51666143]
[1734000422591,0.8185,3919.7,3918.9,0.51666143]
[1734000423227,0.89819406,3919.7,3918.9,0.51666143]
[1734000423720,0.8185,3919.7,3918.9,0.51666143]
[1734000424319,3.36971,3919.7,3918.9,0.51666143]
[1734000425230,0.8185,3919.7,3918.9,0.51666143]
[1734000427232,0.8185,3919.7,3918.9,3.06836143]
[1734000427397,0.8185,3919.7,3918.9,3.45792257]
[1734000427597,0.8185,3919.7,3919.0,2.55166]
[1734000428097,0.8185,3919.7,3918.9,0.90622257]
[1734000428942,0.8185,3919.7,3918.6,0.8271]
[1734000429155,0.8231,3920.0,3918.4,3.30608522]
[1734000429304,2.55134,3919.5,3918.4,2.55205]
[1734000429510,0.758,3919.4,3918.4,2.55205]
[1734000430145,0.758,3919.4,3918.6,0.50271249]
[1734000430356,0.758,3919.4,3918.6,1.16692097]
[1734000430512,0.758,3919.4,3918.8,2.5518]
[1734000434634,0.07970739,3919.6,3918.9,0.7518]
[1734000434835,0.7861,3919.9,3918.9,3.30353]
[1734000434836,0.07970558,3919.8,3918.9,3.30353]
[1734000435082,0.0797055,3919.7,3918.9,3.30353]
[1734000435283,0.0797055,3919.6,3918.9,4.63238973]
[1734000435434,0.7861,3919.9,3918.9,4.63238973]
[1734000435636,0.42617614,3919.8,3918.9,4.57827926]
[1734000435870,0.07970526,3919.7,3918.9,4.57827926]
[1734000436072,0.07970526,3919.6,3918.9,4.57827926]
[1734000436234,0.07970526,3919.5,3918.9,4.57827926]
[1734000436582,0.07970526,3919.4,3918.9,4.57827926]
[1734000436737,0.0797041,3919.7,3919.0,2.55165]
[1734000436935,0.7861,3919.9,3919.0,2.55165]
[1734000437247,0.07970247,3919.8,3919.0,2.55165]
[1734000437578,0.07970247,3919.7,3919.0,2.55165]
[1734000437734,0.07970247,3919.6,3919.0,2.55165]
[1734000437935,0.9136288,3919.9,3919.0,2.55165]
[1734000438136,0.07970376,3919.8,3918.9,2.02654926]
[1734000438339,0.07970376,3919.7,3918.9,2.02654926]
[1734000438651,1.13257088,3919.9,3918.9,2.02654926]
[1734000438832,2.55128,3919.6,3918.9,1.32885973]
[1734000439032,2.55128,3919.6,3918.6,0.50271249]
[1734000439033,0.7957,3919.4,3918.6,0.50271249]
[1734000439336,0.7957,3919.4,3918.1,1.32885973]
[1734000439337,3.34744,3918.9,3918.1,1.32885973]
[1734000439538,0.07970337,3918.8,3918.1,1.32885973]
[1734000439739,0.07970337,3918.7,3918.1,1.32885973]
[1734000440065,0.07970337,3918.7,3917.9,0.7896]
[1734000440066,2.55218,3918.3,3917.9,0.7896]
[1734000440242,0.07970337,3918.2,3917.9,0.7896]
[1734000440447,0.07970337,3918.1,3917.9,0.7896]
[1734000440638,0.07970337,3918.0,3917.9,0.7896]
[1734000441575,2.63202337,3918.0,3917.9,0.7896]
[1734000441872,3.27801536,3918.0,3917.9,0.7896]
[1734000442271,3.07073434,3918.0,3917.9,0.7896]
[1734000442573,2.55254,3917.7,3916.7,2.82582688]
[1734000442752,3.34814,3917.9,3916.7,5.37898688]
[1734000442947,0.20732977,3917.8,3916.7,5.37898688]
[1734000443161,0.07974222,3917.7,3916.8,0.61685869]
[1734000443366,0.07974222,3917.6,3916.8,0.61685869]
[1734000443565,2.55245,3917.8,3916.8,0.61685869]
[1734000443767,0.07974441,3917.7,3917.0,0.50687858]
[1734000443976,0.07974441,3917.6,3917.0,0.50687858]
[1734000444181,0.07974441,3917.6,3916.7,5.37898688]
[1734000444182,0.0797444,3917.7,3916.7,5.37898688]
[1734000444381,0.7957,3917.9,3916.5,0.7896]
[1734000444382,0.13141143,3917.8,3916.5,0.7896]
[1734000444596,2.55262,3917.6,3916.9,0.49917619]
[1734000445792,2.55258,3917.6,3916.5,0.7896]
[1734000446079,0.7957,3917.7,3916.5,0.7896]
[1734000446080,0.42771971,3917.5,3916.6,0.51878522]
[1734000446281,0.25901235,3917.8,3916.3,3.0]
[1734000446282,0.7957,3917.2,3916.3,3.0]
[1734000446444,3.34858,3917.2,3916.2,2.82582688]
[1734000446644,0.7957,3917.2,3916.2,5.37931688]
[1734000447043,0.7957,3917.2,3916.5,0.51393676]
[1734000447282,0.7957,3917.2,3916.2,5.37931688]
[1734000447283,3.34856,3917.2,3916.2,2.82582688]
[1734000448100,2.55297,3917.0,3916.3,0.51949973]
[1734000448385,1.130556,3917.2,3916.3,0.51949973]
[1734000448386,3.683406,3917.2,3916.3,0.51949973]
[1734000448685,3.34855,3917.2,3916.3,0.51949973]
[1734000449044,0.7957,3917.2,3916.3,0.51949973]
[1734000451844,0.7957,3917.2,3916.3,3.07285973]
[1734000452047,0.7853,3917.5,3916.6,2.5532]
[1734000453390,0.7532,3918.1,3917.0,5.37873688]
[1734000453686,0.7532,3918.1,3917.0,6.15703688]
[1734000453987,0.7532,3918.1,3917.0,0.7783]
[1734000454157,0.7532,3918.1,3917.2,2.55282]
[1734000454752,0.7532,3918.1,3917.1,3.0]
[1734000454958,0.7532,3918.1,3917.2,0.66041269]
[1734000455260,0.7532,3918.1,3917.4,2.55267]
[1734000455464,0.7532,3918.1,3917.2,0.66041269]
[1734000455788,0.7532,3918.1,3917.4,2.55269]
[1734000455988,0.7532,3918.1,3917.4,0.51079055]
[1734000456191,0.8035,3918.4,3917.6,2.55252]
[1734000456557,0.8035,3918.4,3917.6,0.97126374]
[1734000456892,0.8035,3918.4,3917.9,2.55237]
[1734000457092,0.8035,3918.4,3917.6,0.97126374]
[1734000457397,0.8035,3918.4,3917.9,2.55238]
[1734000457589,0.8035,3918.4,3917.9,2.55236]
[1734000458277,0.8035,3918.4,3917.5,3.8235]
[1734000458791,0.84083176,3919.0,3917.5,3.8235]
[1734000459009,0.07973176,3918.9,3918.1,2.5522]
[1734000459321,0.07973176,3918.9,3918.3,2.55211]
[1734000459322,0.41896894,3918.9,3918.3,2.55211]
[1734000459608,0.07973176,3918.9,3918.3,2.55211]
[1734000459794,0.7611,3919.0,3918.3,2.55211]
[1734000460374,0.84083176,3919.0,3918.3,2.55211]
[1734000460607,0.7611,3919.0,3918.3,2.55211]
[1734000460990,0.7611,3919.0,3917.5,3.8235]
[1734000461179,0.7611,3919.0,3918.1,2.55224]
[1734000461379,0.07972162,3918.9,3918.1,2.55224]
[1734000462188,0.07972162,3918.8,3918.1,2.55224]
[1734000462371,0.7611,3919.0,3918.1,2.55224]
[1734000462372,0.07972162,3918.9,3918.1,2.55224]
[1734000462578,0.07972162,3918.8,3918.1,2.55224]
[1734000462880,0.07972162,3918.9,3918.1,2.55224]
[1734000463082,0.07972162,3918.8,3918.1,2.55224]
[1734000463283,0.07972162,3918.9,3918.1,2.55224]
[1734000463603,0.07972162,3918.8,3918.1,2.55224]
[1734000463803,0.07972162,3918.9,3918.1,2.55224]
[1734000464009,0.07972162,3918.8,3918.1,2.55224]
[1734000464315,0.07972162,3918.7,3918.2,2.55218]
[1734000464514,0.7611,3919.0,3918.2,2.55218]
[1734000464722,0.07972392,3918.9,3918.2,2.55218]
[1734000464924,0.07972392,3918.8,3918.2,2.55218]
[1734000465231,0.07972392,3918.7,3918.0,0.49922433]
[1734000465414,1.092365,3919.0,3918.3,2.55212]
[1734000465415,0.07972392,3918.9,3918.3,2.55212]
[1734000465616,0.07972392,3918.8,3918.0,0.49922433]
[1734000465803,0.07972198,3918.9,3918.4,2.55205]
[1734000466118,0.7611,3919.0,3918.4,2.55205]
[1734000466119,0.07972198,3918.8,3918.4,2.55205]
[1734000466321,0.7611,3919.0,3918.4,2.55205]
[1734000466534,0.07972194,3918.9,3918.4,2.55205]
[1734000466835,0.07972194,3918.8,3918.4,2.55205]
[1734000467137,0.0797214,3918.7,3918.4,2.55205]
[1734000467433,0.7611,3919.0,3918.4,2.55205]
[1734000467639,0.0797215,3918.9,3918.4,2.55205]
[1734000467929,0.0797215,3918.8,3918.4,2.55205]
[1734000468083,0.7611,3919.0,3918.4,2.55202]
[1734000468399,0.07972151,3918.9,3918.4,2.55202]
[1734000468583,0.07972151,3918.8,3918.4,2.55202]
[1734000468788,0.07972151,3918.7,3918.4,2.55202]
[1734000469024,0.7611,3919.0,3918.4,2.55202]
[1734000469344,0.7611,3919.0,3918.0,0.49922433]
[1734000469345,0.8252,3918.8,3918.2,2.55217]
[1734000469483,0.07972051,3918.7,3918.2,2.55217]
[1734000469687,0.07972051,3918.6,3918.2,2.55217]
[1734000469888,0.8252,3918.8,3918.2,2.55217]
[1734000470142,0.07972384,3918.7,3918.2,2.55217]
[1734000470292,3.05137249,3919.7,3917.6,4.29402274]
[1734000470293,0.87242384,3918.6,3917.9,2.55232]
[1734000470500,0.07972384,3918.5,3917.7,3.0]
[1734000470848,0.7927,3918.6,3918.0,2.55229]
[1734000471141,0.07972592,3918.5,3918.0,2.55229]
[1734000471440,0.7927,3918.6,3918.0,2.55229]
[1734000471620,0.0797259,3918.5,3918.0,2.55229]
[1734000471794,0.7927,3918.6,3918.0,2.55229]
[1734000471994,0.07972589,3918.5,3918.0,2.55229]
[1734000472186,0.7927,3918.6,3918.0,2.55229]
[1734000472397,0.0797259,3918.5,3918.0,2.55229]
[1734000472635,0.7927,3918.6,3918.0,2.55229]
[1734000472926,0.07972594,3918.5,3918.0,2.55229]
[1734000473130,0.7927,3918.6,3918.0,2.55229]
[1734000473426,0.07972608,3918.5,3918.0,2.55229]
[1734000473602,0.7927,3918.6,3918.0,2.55229]